[Event "*** SCC Grand Prix: Titled Tuesday Blitz"]
[Site "Chess.com"]
[Date "2020.08.11"]
[Round "5"]
[White "Dedic8"]
[Black "volcanoexplorer"]
[Result "0-1"]
[WhiteElo "2825"]
[BlackElo "2638"]
[TimeControl "180+1"]
[EndTime "10:55:21 PDT"]
[Termination "volcanoexplorer won by resignation"]

1. e4 {[%clk 0:03:00.9]} 1... e5 {[%clk 0:02:59.9]} 2. Nf3 {[%clk 0:03:00.5]}
2... Nc6 {[%clk 0:03:00.3]} 3. Bb5 {[%clk 0:03:01.1]} 3... a6 {[%clk 0:03:00.6]}
4. Ba4 {[%clk 0:03:01.5]} 4... Nf6 {[%clk 0:03:01]} 5. O-O {[%clk 0:03:01.7]}
5... Be7 {[%clk 0:03:01.3]} 6. Re1 {[%clk 0:03:02.2]} 6... b5 {[%clk 0:03:01.8]}
7. Bb3 {[%clk 0:03:02.7]} 7... O-O {[%clk 0:03:02.6]} 8. a4 {[%clk 0:03:03]}
8... d5 {[%clk 0:03:00.9]} 9. axb5 {[%clk 0:02:55.4]} 9... dxe4 {[%clk
0:02:59.2]} 10. bxc6 {[%clk 0:02:55.8]} 10... exf3 {[%clk 0:02:59.7]} 11. Qxf3
{[%clk 0:02:56.7]} 11... e4 {[%clk 0:03:00.4]} 12. Qg3 {[%clk 0:02:45.5]} 12...
Bd6 {[%clk 0:02:51.5]} 13. Qh4 {[%clk 0:02:43.4]} 13... Re8 {[%clk 0:02:51.9]}
14. Nc3 {[%clk 0:02:32.3]} 14... Bf5 {[%clk 0:01:34.4]} 15. Bc4 {[%clk
0:02:26.5]} 15... h6 {[%clk 0:01:18]} 16. Ra5 {[%clk 0:02:07]} 16... Bg6 {[%clk
0:01:08.5]} 17. Qh3 {[%clk 0:01:41.5]} 17... h5 {[%clk 0:00:51.5]} 18. Qh4
{[%clk 0:01:28.6]} 18... Bb4 {[%clk 0:00:36.4]} 19. Rg5 {[%clk 0:01:26.5]} 19...
Kh7 {[%clk 0:00:36.7]} 20. Ne2 {[%clk 0:01:00.3]} 20... Bxd2 {[%clk 0:00:25.7]}
21. Bxd2 {[%clk 0:00:58.2]} 21... Qxd2 {[%clk 0:00:26.6]} 22. Rf1 {[%clk
0:00:54.2]} 22... Qxc2 {[%clk 0:00:22.5]} 23. b3 {[%clk 0:00:54.7]} 23... Rad8
{[%clk 0:00:15.6]} 24. g4 {[%clk 0:00:44.4]} 24... e3 {[%clk 0:00:07.6]} 25.
gxh5 {[%clk 0:00:39.8]} 25... Bd3 {[%clk 0:00:07.1]} 26. Rxg7+ {[%clk
0:00:17.2]} 26... Kxg7 {[%clk 0:00:06.3]} 27. Qg5+ {[%clk 0:00:17.9]} 27... Kh7
{[%clk 0:00:05.8]} 28. Bxf7 {[%clk 0:00:11.5]} 28... Rg8 {[%clk 0:00:06.1]} 29.
Bxg8+ {[%clk 0:00:06.4]} 29... Rxg8 {[%clk 0:00:05.9]} 30. Qg3 {[%clk
0:00:05.4]} 30... Qxe2 {[%clk 0:00:05.5]} 0-1

[Event "*** SCC Grand Prix: Titled Tuesday Blitz"]
[Site "Chess.com"]
[Date "2020.08.11"]
[Round "5"]
[White "KuzubovYuriy"]
[Black "Mr_Sinigami"]
[Result "1-0"]
[WhiteElo "2826"]
[BlackElo "2611"]
[TimeControl "180+1"]
[EndTime "10:55:21 PDT"]
[Termination "KuzubovYuriy won on time"]

1. d4 {[%clk 0:02:59.9]} 1... Nf6 {[%clk 0:02:59.2]} 2. Nf3 {[%clk 0:02:58.5]}
2... g6 {[%clk 0:02:58.6]} 3. Nbd2 {[%clk 0:02:57.9]} 3... d5 {[%clk 0:02:57.5]}
4. e3 {[%clk 0:02:56.1]} 4... Bg7 {[%clk 0:02:56.9]} 5. b4 {[%clk 0:02:55.6]}
5... O-O {[%clk 0:02:55.5]} 6. Be2 {[%clk 0:02:55.2]} 6... c6 {[%clk 0:02:47]}
7. O-O {[%clk 0:02:44.2]} 7... a5 {[%clk 0:02:41.5]} 8. b5 {[%clk 0:02:43.5]}
8... c5 {[%clk 0:02:32.6]} 9. c4 {[%clk 0:02:05.9]} 9... cxd4 {[%clk 0:02:19.9]}
10. Nxd4 {[%clk 0:02:03.5]} 10... e5 {[%clk 0:01:58]} 11. Nc2 {[%clk 0:01:36.7]}
11... d4 {[%clk 0:01:49.2]} 12. exd4 {[%clk 0:01:36.8]} 12... exd4 {[%clk
0:01:49.2]} 13. Bd3 {[%clk 0:01:36.9]} 13... Nbd7 {[%clk 0:01:44.8]} 14. Ba3
{[%clk 0:01:35.4]} 14... Re8 {[%clk 0:01:41]} 15. Nf3 {[%clk 0:01:32.3]} 15...
Ng4 {[%clk 0:00:46.3]} 16. Ncxd4 {[%clk 0:01:32]} 16... Nde5 {[%clk 0:00:41.7]}
17. Rc1 {[%clk 0:01:30.2]} 17... Nxd3 {[%clk 0:00:24.4]} 18. Qxd3 {[%clk
0:01:29.8]} 18... Bf5 {[%clk 0:00:24.4]} 19. Qd2 {[%clk 0:01:23.9]} 19... Be4
{[%clk 0:00:23.9]} 20. Rfd1 {[%clk 0:01:19.5]} 20... Bh6 {[%clk 0:00:21.2]} 21.
Qc3 {[%clk 0:01:17.2]} 21... Bxc1 {[%clk 0:00:19.3]} 22. Rxc1 {[%clk 0:01:15.2]}
22... Bxf3 {[%clk 0:00:15.9]} 23. Nxf3 {[%clk 0:01:13.4]} 23... Qf6 {[%clk
0:00:15.9]} 24. Qc2 {[%clk 0:01:07.6]} 24... Ne5 {[%clk 0:00:12.8]} 25. Nxe5
{[%clk 0:01:06.4]} 25... Qxe5 {[%clk 0:00:12.8]} 26. h3 {[%clk 0:01:03.9]} 26...
Rad8 {[%clk 0:00:11]} 27. Bb2 {[%clk 0:01:02.4]} 27... Qf5 {[%clk 0:00:06.6]}
28. Qc3 {[%clk 0:00:58.9]} 28... f6 {[%clk 0:00:06.5]} 29. c5 {[%clk 0:00:57.5]}
29... Re2 {[%clk 0:00:05]} 30. Rf1 {[%clk 0:00:39.5]} 30... Rdd2 {[%clk
0:00:03.7]} 31. Bc1 {[%clk 0:00:13.9]} 1-0

[Event "*** SCC Grand Prix: Titled Tuesday Blitz"]
[Site "Chess.com"]
[Date "2020.08.11"]
[Round "5"]
[White "chito89"]
[Black "HonzaVykouk"]
[Result "1-0"]
[WhiteElo "2752"]
[BlackElo "2580"]
[TimeControl "180+1"]
[EndTime "10:55:24 PDT"]
[Termination "chito89 won by resignation"]

1. Nf3 {[%clk 0:02:59.3]} 1... Nf6 {[%clk 0:02:59.7]} 2. c4 {[%clk 0:02:57]}
2... g6 {[%clk 0:02:59.9]} 3. g3 {[%clk 0:02:57.1]} 3... Bg7 {[%clk 0:03:00.8]}
4. Bg2 {[%clk 0:02:57.7]} 4... O-O {[%clk 0:03:01.7]} 5. O-O {[%clk 0:02:58.3]}
5... d6 {[%clk 0:03:02.6]} 6. d4 {[%clk 0:02:54.7]} 6... c6 {[%clk 0:03:03.5]}
7. Nc3 {[%clk 0:02:52.6]} 7... a6 {[%clk 0:03:04.1]} 8. e4 {[%clk 0:02:50.3]}
8... Nfd7 {[%clk 0:03:04.6]} 9. Qe2 {[%clk 0:02:48.3]} 9... e5 {[%clk
0:03:00.9]} 10. dxe5 {[%clk 0:02:46.3]} 10... dxe5 {[%clk 0:03:00.7]} 11. Rd1
{[%clk 0:02:43]} 11... Qe7 {[%clk 0:03:00.3]} 12. b3 {[%clk 0:02:32.8]} 12... a5
{[%clk 0:03:00.2]} 13. Na4 {[%clk 0:02:28.4]} 13... Na6 {[%clk 0:02:59.9]} 14.
Be3 {[%clk 0:02:27.1]} 14... Re8 {[%clk 0:02:58.1]} 15. Rd2 {[%clk 0:02:04.1]}
15... Nac5 {[%clk 0:02:49.7]} 16. Nxc5 {[%clk 0:02:03.6]} 16... Nxc5 {[%clk
0:02:50.6]} 17. Rad1 {[%clk 0:02:03.9]} 17... Ne6 {[%clk 0:02:49]} 18. Bb6
{[%clk 0:01:49.9]} 18... a4 {[%clk 0:02:45.3]} 19. Qe3 {[%clk 0:01:49.6]} 19...
axb3 {[%clk 0:02:24.9]} 20. axb3 {[%clk 0:01:42.6]} 20... c5 {[%clk 0:02:24]}
21. Rd5 {[%clk 0:01:32.1]} 21... Bf8 {[%clk 0:01:57.4]} 22. Nxe5 {[%clk
0:01:24]} 22... Ra6 {[%clk 0:01:53]} 23. Nd7 {[%clk 0:01:10.7]} 23... Bxd7
{[%clk 0:01:05.5]} 24. Rxd7 {[%clk 0:01:11.6]} 24... Qf6 {[%clk 0:01:06.4]} 25.
Rxb7 {[%clk 0:01:11.8]} 25... Nd4 {[%clk 0:01:07.1]} 26. Bc7 {[%clk 0:01:04.9]}
26... Qc6 {[%clk 0:01:06.8]} 27. e5 {[%clk 0:01:03.1]} 27... Qe6 {[%clk
0:00:54]} 28. Bd5 {[%clk 0:01:01.1]} 28... Qg4 {[%clk 0:00:53.5]} 29. f3 {[%clk
0:01:01.5]} 29... Qh3 {[%clk 0:00:52.6]} 30. Qf2 {[%clk 0:00:46.1]} 30... Bh6
{[%clk 0:00:28.8]} 31. f4 {[%clk 0:00:31.7]} 31... g5 {[%clk 0:00:21.7]} 32. Bd6
{[%clk 0:00:27.9]} 32... Rxd6 {[%clk 0:00:19.4]} 33. Bxf7+ {[%clk 0:00:25.5]}
33... Kh8 {[%clk 0:00:16.6]} 34. Bxe8 {[%clk 0:00:25.9]} 34... gxf4 {[%clk
0:00:15.6]} 35. exd6 {[%clk 0:00:24.5]} 35... f3 {[%clk 0:00:10.9]} 36. Re1
{[%clk 0:00:23.3]} 1-0

[Event "*** SCC Grand Prix: Titled Tuesday Blitz"]
[Site "Chess.com"]
[Date "2020.08.11"]
[Round "5"]
[White "GMBenjaminBok"]
[Black "ManuDavid2910"]
[Result "1-0"]
[WhiteElo "2903"]
[BlackElo "2637"]
[TimeControl "180+1"]
[EndTime "10:55:25 PDT"]
[Termination "GMBenjaminBok won by resignation"]

1. d4 {[%clk 0:03:00.9]} 1... Nf6 {[%clk 0:02:59]} 2. c4 {[%clk 0:03:00.9]} 2...
e6 {[%clk 0:02:59.5]} 3. Nf3 {[%clk 0:03:00.9]} 3... d5 {[%clk 0:03:00.4]} 4.
Nc3 {[%clk 0:03:01.1]} 4... c5 {[%clk 0:03:00.8]} 5. cxd5 {[%clk 0:02:57]} 5...
exd5 {[%clk 0:03:01.7]} 6. g3 {[%clk 0:02:54.9]} 6... Nc6 {[%clk 0:03:02]} 7.
Bg2 {[%clk 0:02:55]} 7... Bg4 {[%clk 0:03:00.4]} 8. dxc5 {[%clk 0:02:05.8]} 8...
Bxc5 {[%clk 0:02:59.3]} 9. O-O {[%clk 0:02:05.9]} 9... O-O {[%clk 0:02:59.5]}
10. b3 {[%clk 0:02:06.4]} 10... Re8 {[%clk 0:02:58.4]} 11. Bb2 {[%clk
0:02:06.2]} 11... h6 {[%clk 0:02:58.9]} 12. h3 {[%clk 0:02:05.8]} 12... Bh5
{[%clk 0:02:58.7]} 13. e3 {[%clk 0:02:05.7]} 13... Bb6 {[%clk 0:02:53.5]} 14.
Ne2 {[%clk 0:02:04.9]} 14... Ne4 {[%clk 0:02:52.4]} 15. Nf4 {[%clk 0:02:02.4]}
15... Bxf3 {[%clk 0:02:39.2]} 16. Qxf3 {[%clk 0:02:01.4]} 16... d4 {[%clk
0:02:33.4]} 17. Rad1 {[%clk 0:01:56.6]} 17... Qf6 {[%clk 0:02:24.5]} 18. Qg4
{[%clk 0:01:29.5]} 18... Ne5 {[%clk 0:01:34.8]} 19. Qh5 {[%clk 0:01:26.4]} 19...
Nc3 {[%clk 0:00:31.9]} 20. exd4 {[%clk 0:01:05.7]} 20... Nxd1 {[%clk 0:00:22.5]}
21. dxe5 {[%clk 0:01:05.5]} 21... Bxf2+ {[%clk 0:00:17.6]} 22. Rxf2 {[%clk
0:01:05.4]} 22... Qd8 {[%clk 0:00:17.7]} 23. e6 {[%clk 0:00:57.6]} 23... fxe6
{[%clk 0:00:10.8]} 24. Nxe6 {[%clk 0:00:44.4]} 24... Qd7 {[%clk 0:00:10.7]} 25.
Nc5 {[%clk 0:00:39.5]} 25... Re1+ {[%clk 0:00:08.9]} 26. Kh2 {[%clk 0:00:38.8]}
26... Qe8 {[%clk 0:00:09.2]} 27. Qg4 {[%clk 0:00:19.3]} 27... Nxb2 {[%clk
0:00:06.8]} 28. Rxb2 {[%clk 0:00:17.8]} 28... Qe5 {[%clk 0:00:06.8]} 29. Nd3
{[%clk 0:00:16.1]} 29... Qc3 {[%clk 0:00:06.1]} 30. Nxe1 {[%clk 0:00:15.5]}
30... Qxb2 {[%clk 0:00:06.2]} 31. Nd3 {[%clk 0:00:13.8]} 31... Qxa2 {[%clk
0:00:06]} 32. Qe6+ {[%clk 0:00:13.6]} 32... Kh8 {[%clk 0:00:06.1]} 33. Ne5
{[%clk 0:00:13.7]} 33... Qc2 {[%clk 0:00:03.9]} 34. h4 {[%clk 0:00:13.4]} 34...
Rf8 {[%clk 0:00:03.7]} 35. Ng6+ {[%clk 0:00:12.6]} 1-0

[Event "*** SCC Grand Prix: Titled Tuesday Blitz"]
[Site "Chess.com"]
[Date "2020.08.11"]
[Round "5"]
[White "GMaka"]
[Black "Eternauta2400"]
[Result "0-1"]
[WhiteElo "2346"]
[BlackElo "2510"]
[TimeControl "180+1"]
[EndTime "10:55:25 PDT"]
[Termination "Eternauta2400 won by resignation"]

1. b3 {[%clk 0:03:00.2]} 1... e5 {[%clk 0:02:47.2]} 2. Bb2 {[%clk 0:03:00]} 2...
Nc6 {[%clk 0:02:45.1]} 3. e3 {[%clk 0:02:59.4]} 3... d6 {[%clk 0:02:43.5]} 4.
Nf3 {[%clk 0:02:58]} 4... g6 {[%clk 0:02:43.2]} 5. Bb5 {[%clk 0:02:55.1]} 5...
Bg7 {[%clk 0:02:41.1]} 6. d4 {[%clk 0:02:52.5]} 6... exd4 {[%clk 0:02:39.3]} 7.
exd4 {[%clk 0:02:38.2]} 7... Bd7 {[%clk 0:02:38.2]} 8. O-O {[%clk 0:02:34]} 8...
Nge7 {[%clk 0:02:36]} 9. Qc1 {[%clk 0:02:01.8]} 9... O-O {[%clk 0:02:32.9]} 10.
c4 {[%clk 0:02:01.2]} 10... Nf5 {[%clk 0:02:11.8]} 11. d5 {[%clk 0:01:40.6]}
11... Ncd4 {[%clk 0:01:46]} 12. Nxd4 {[%clk 0:01:37.5]} 12... Nxd4 {[%clk
0:01:44.4]} 13. Nc3 {[%clk 0:01:14.3]} 13... Nxb5 {[%clk 0:01:24.5]} 14. cxb5
{[%clk 0:01:15.2]} 14... Qh4 {[%clk 0:00:56.3]} 15. a4 {[%clk 0:01:11.1]} 15...
Be5 {[%clk 0:00:53.5]} 16. g3 {[%clk 0:01:10.2]} 16... Qh5 {[%clk 0:00:52]} 17.
Ne4 {[%clk 0:00:52.2]} 17... f5 {[%clk 0:00:23.9]} 18. Bxe5 {[%clk 0:00:44.4]}
18... fxe4 {[%clk 0:00:19.1]} 19. Bf4 {[%clk 0:00:44.2]} 19... Bg4 {[%clk
0:00:14.8]} 20. h4 {[%clk 0:00:40.8]} 20... Bf3 {[%clk 0:00:14.1]} 21. Re1
{[%clk 0:00:35.5]} 21... Qg4 {[%clk 0:00:13.6]} 22. Kh2 {[%clk 0:00:35.8]} 22...
Rf5 {[%clk 0:00:11.8]} 23. Re3 {[%clk 0:00:19.9]} 23... Raf8 {[%clk 0:00:11.2]}
24. Rxf3 {[%clk 0:00:20.4]} 24... exf3 {[%clk 0:00:09.8]} 25. Qe3 {[%clk
0:00:20.2]} 25... Rxf4 {[%clk 0:00:08.4]} 26. gxf4 {[%clk 0:00:15.1]} 26...
Qxh4+ {[%clk 0:00:07.3]} 27. Kg1 {[%clk 0:00:15.4]} 27... Rxf4 {[%clk 0:00:07]}
28. Qe6+ {[%clk 0:00:14.2]} 28... Kg7 {[%clk 0:00:06.7]} 29. Qd7+ {[%clk
0:00:12]} 29... Kh6 {[%clk 0:00:06.8]} 30. Qh3 {[%clk 0:00:02.2]} 0-1

[Event "*** SCC Grand Prix: Titled Tuesday Blitz"]
[Site "Chess.com"]
[Date "2020.08.11"]
[Round "5"]
[White "CzechmVIII"]
[Black "Batsai"]
[Result "0-1"]
[WhiteElo "2148"]
[BlackElo "2333"]
[TimeControl "180+1"]
[EndTime "10:55:25 PDT"]
[Termination "Batsai won on time"]

1. e4 {[%clk 0:03:00.9]} 1... c5 {[%clk 0:02:59]} 2. Nf3 {[%clk 0:03:00.8]} 2...
d6 {[%clk 0:02:59.2]} 3. d4 {[%clk 0:02:59.6]} 3... cxd4 {[%clk 0:03:00.1]} 4.
Nxd4 {[%clk 0:03:00]} 4... Nf6 {[%clk 0:03:00.6]} 5. Nc3 {[%clk 0:03:00.4]} 5...
a6 {[%clk 0:03:01]} 6. Bg5 {[%clk 0:03:00.3]} 6... e6 {[%clk 0:02:57.9]} 7. f4
{[%clk 0:03:00]} 7... Nbd7 {[%clk 0:02:56.2]} 8. Qf3 {[%clk 0:02:52.3]} 8... Be7
{[%clk 0:02:55.2]} 9. O-O-O {[%clk 0:02:43.1]} 9... Qc7 {[%clk 0:02:48.5]} 10.
g4 {[%clk 0:02:41.2]} 10... b5 {[%clk 0:02:44.5]} 11. Bxf6 {[%clk 0:02:41]}
11... Bxf6 {[%clk 0:02:39.7]} 12. g5 {[%clk 0:02:40.5]} 12... Be7 {[%clk
0:02:39.8]} 13. a3 {[%clk 0:02:34]} 13... Rb8 {[%clk 0:02:38]} 14. Bh3 {[%clk
0:02:33.1]} 14... b4 {[%clk 0:02:33.3]} 15. axb4 {[%clk 0:02:32.8]} 15... Rxb4
{[%clk 0:02:33.8]} 16. Nf5 {[%clk 0:02:30.5]} 16... exf5 {[%clk 0:02:27.1]} 17.
Nd5 {[%clk 0:02:30.2]} 17... Qa5 {[%clk 0:02:26.2]} 18. Nxb4 {[%clk 0:02:30.2]}
18... Qxb4 {[%clk 0:02:25.8]} 19. exf5 {[%clk 0:02:16.9]} 19... Bb7 {[%clk
0:02:13.2]} 20. Qe3 {[%clk 0:01:56]} 20... Bxh1 {[%clk 0:02:10.5]} 21. Rxh1
{[%clk 0:01:20]} 21... d5 {[%clk 0:01:56]} 22. Re1 {[%clk 0:00:53.9]} 22... Kd8
{[%clk 0:01:38.3]} 23. f6 {[%clk 0:00:43.8]} 23... gxf6 {[%clk 0:01:30]} 24.
Bxd7 {[%clk 0:00:38.3]} 24... Bc5 {[%clk 0:01:20.3]} 25. Qg3 {[%clk 0:00:19.8]}
25... Kxd7 {[%clk 0:01:17.1]} 26. Rd1 {[%clk 0:00:20.1]} 26... Bd6 {[%clk
0:01:03.8]} 27. Qh3+ {[%clk 0:00:10.9]} 27... Kc7 {[%clk 0:01:01.6]} 28. Kb1
{[%clk 0:00:09.1]} 28... Rb8 {[%clk 0:00:51.6]} 29. b3 {[%clk 0:00:09.4]} 29...
Bxf4 {[%clk 0:00:40]} 30. Qxh7 {[%clk 0:00:06.6]} 30... Qe4 {[%clk 0:00:10.4]}
31. Qxf7+ {[%clk 0:00:05.4]} 31... Kc6 {[%clk 0:00:09.2]} 32. Qe6+ {[%clk
0:00:04.2]} 32... Qxe6 {[%clk 0:00:08.5]} 0-1

[Event "*** SCC Grand Prix: Titled Tuesday Blitz"]
[Site "Chess.com"]
[Date "2020.08.11"]
[Round "5"]
[White "AttilaTurzo"]
[Black "crescentmoon2411"]
[Result "1/2-1/2"]
[WhiteElo "2457"]
[BlackElo "2737"]
[TimeControl "180+1"]
[EndTime "10:55:26 PDT"]
[Termination "Game drawn by repetition"]

1. e4 {[%clk 0:03:00.9]} 1... e6 {[%clk 0:02:59.5]} 2. d4 {[%clk 0:03:00.1]}
2... d5 {[%clk 0:03:00.2]} 3. Nc3 {[%clk 0:02:58.8]} 3... Bb4 {[%clk 0:02:57.8]}
4. e5 {[%clk 0:02:58.8]} 4... c5 {[%clk 0:02:57.2]} 5. a3 {[%clk 0:02:59.2]}
5... Bxc3+ {[%clk 0:02:56.9]} 6. bxc3 {[%clk 0:03:00.1]} 6... Ne7 {[%clk
0:02:57.2]} 7. Nf3 {[%clk 0:02:57.3]} 7... b6 {[%clk 0:02:50.1]} 8. Bb5+ {[%clk
0:02:52.4]} 8... Bd7 {[%clk 0:02:49.4]} 9. Bd3 {[%clk 0:02:49.1]} 9... h6 {[%clk
0:02:21.6]} 10. O-O {[%clk 0:02:48.1]} 10... Ba4 {[%clk 0:02:18.1]} 11. Re1
{[%clk 0:02:39.2]} 11... Qd7 {[%clk 0:02:12.1]} 12. Rb1 {[%clk 0:02:34.9]} 12...
Nbc6 {[%clk 0:02:06]} 13. Ba6 {[%clk 0:02:29.4]} 13... c4 {[%clk 0:02:01.4]} 14.
Bb5 {[%clk 0:02:15.5]} 14... Bxb5 {[%clk 0:02:01]} 15. Rxb5 {[%clk 0:02:16.4]}
15... Nxe5 {[%clk 0:01:59.5]} 16. a4 {[%clk 0:02:11.4]} 16... Nxf3+ {[%clk
0:01:54.4]} 17. Qxf3 {[%clk 0:02:12.3]} 17... O-O {[%clk 0:01:53.1]} 18. Ba3
{[%clk 0:01:57.8]} 18... Rfe8 {[%clk 0:01:47.3]} 19. Bxe7 {[%clk 0:01:57.5]}
19... Rxe7 {[%clk 0:01:45.7]} 20. Qe3 {[%clk 0:01:54.6]} 20... Rae8 {[%clk
0:01:36.5]} 21. f4 {[%clk 0:01:53.2]} 21... Qc6 {[%clk 0:01:12.6]} 22. Qf3
{[%clk 0:01:51.3]} 22... Rb7 {[%clk 0:01:03.1]} 23. h3 {[%clk 0:01:44.6]} 23...
a6 {[%clk 0:00:58.2]} 24. Rb4 {[%clk 0:01:44]} 24... b5 {[%clk 0:00:58]} 25.
axb5 {[%clk 0:01:40.4]} 25... Rxb5 {[%clk 0:00:57.8]} 26. f5 {[%clk 0:01:32.9]}
26... exf5 {[%clk 0:00:54.7]} 27. Rxe8+ {[%clk 0:01:28.9]} 27... Qxe8 {[%clk
0:00:55.6]} 28. Qxf5 {[%clk 0:01:23.4]} 28... Qe6 {[%clk 0:00:39.7]} 29. Qf4
{[%clk 0:01:20]} 29... Kh7 {[%clk 0:00:36.7]} 30. Kh2 {[%clk 0:01:16.9]} 30...
f6 {[%clk 0:00:25.7]} 31. Qc7 {[%clk 0:01:13.7]} 31... Qe4 {[%clk 0:00:14.9]}
32. Rxb5 {[%clk 0:01:09.7]} 32... axb5 {[%clk 0:00:15.8]} 33. Qb8 {[%clk
0:00:52.9]} 33... Qxc2 {[%clk 0:00:13.9]} 34. Qxb5 {[%clk 0:00:52.9]} 34... Qe4
{[%clk 0:00:13.8]} 35. Qb8 {[%clk 0:00:48.2]} 35... f5 {[%clk 0:00:13.4]} 36.
Qc7 {[%clk 0:00:43.5]} 36... f4 {[%clk 0:00:12.5]} 37. Qf7 {[%clk 0:00:41.3]}
37... f3 {[%clk 0:00:08.6]} 38. gxf3 {[%clk 0:00:33]} 38... Qe2+ {[%clk
0:00:07.1]} 39. Kg3 {[%clk 0:00:32.6]} 39... Qe1+ {[%clk 0:00:07.2]} 40. Kg2
{[%clk 0:00:30.8]} 40... Qd2+ {[%clk 0:00:07.4]} 41. Kg3 {[%clk 0:00:30.4]}
41... Qe1+ {[%clk 0:00:05.5]} 42. Kg2 {[%clk 0:00:30.3]} 42... Qd2+ {[%clk
0:00:05.5]} 43. Kg3 {[%clk 0:00:30.3]} 43... Qe1+ {[%clk 0:00:05.5]} 1/2-1/2

[Event "*** SCC Grand Prix: Titled Tuesday Blitz"]
[Site "Chess.com"]
[Date "2020.08.11"]
[Round "5"]
[White "Korona_91"]
[Black "abhidabhi"]
[Result "0-1"]
[WhiteElo "2489"]
[BlackElo "2781"]
[TimeControl "180+1"]
[EndTime "10:55:27 PDT"]
[Termination "abhidabhi won by resignation"]

1. e4 {[%clk 0:03:00.9]} 1... e5 {[%clk 0:02:58.8]} 2. Nf3 {[%clk 0:03:00.6]}
2... Nc6 {[%clk 0:02:59.1]} 3. Bc4 {[%clk 0:03:00.7]} 3... Bc5 {[%clk
0:02:59.3]} 4. d3 {[%clk 0:03:00.3]} 4... Nf6 {[%clk 0:02:58.9]} 5. Nc3 {[%clk
0:03:00.3]} 5... d6 {[%clk 0:02:58.3]} 6. Bg5 {[%clk 0:03:00.1]} 6... h6 {[%clk
0:02:57.9]} 7. Bxf6 {[%clk 0:02:59.5]} 7... Qxf6 {[%clk 0:02:57.4]} 8. Nd5
{[%clk 0:02:59.6]} 8... Qd8 {[%clk 0:02:57.5]} 9. c3 {[%clk 0:02:59.9]} 9... a6
{[%clk 0:02:55.4]} 10. d4 {[%clk 0:03:00]} 10... Ba7 {[%clk 0:02:53.2]} 11. dxe5
{[%clk 0:02:59.8]} 11... dxe5 {[%clk 0:02:40.9]} 12. Qe2 {[%clk 0:02:58.6]}
12... b5 {[%clk 0:02:01.9]} 13. Bb3 {[%clk 0:02:48.4]} 13... Be6 {[%clk
0:02:00.2]} 14. Rd1 {[%clk 0:02:47.6]} 14... Qc8 {[%clk 0:01:59.4]} 15. a4
{[%clk 0:02:35.7]} 15... Rb8 {[%clk 0:01:58.2]} 16. axb5 {[%clk 0:02:34.9]}
16... axb5 {[%clk 0:01:58.3]} 17. O-O {[%clk 0:02:24.2]} 17... Bc5 {[%clk
0:01:53.2]} 18. c4 {[%clk 0:02:01.3]} 18... Na5 {[%clk 0:01:26]} 19. Ba2 {[%clk
0:01:52.9]} 19... c6 {[%clk 0:01:21]} 20. Nxe5 {[%clk 0:01:48.9]} 20... Nxc4
{[%clk 0:01:13.7]} 21. Nxc4 {[%clk 0:01:33.2]} 21... bxc4 {[%clk 0:01:13.6]} 22.
Bxc4 {[%clk 0:01:18.1]} 22... Bg4 {[%clk 0:01:02.1]} 23. Nc7+ {[%clk 0:00:47.4]}
23... Ke7 {[%clk 0:00:59.5]} 24. Qd2 {[%clk 0:00:30.4]} 24... Qxc7 {[%clk
0:00:57]} 25. Rc1 {[%clk 0:00:29.2]} 25... Rhd8 {[%clk 0:00:54.8]} 26. Qc3
{[%clk 0:00:28.4]} 26... Bd4 {[%clk 0:00:53.3]} 27. Qa3+ {[%clk 0:00:28.2]}
27... Qd6 {[%clk 0:00:52.7]} 28. Qd3 {[%clk 0:00:22.6]} 28... Rxb2 {[%clk
0:00:48.2]} 29. h3 {[%clk 0:00:20.6]} 29... Be2 {[%clk 0:00:46.6]} 30. Qxe2
{[%clk 0:00:15.1]} 30... Rxe2 {[%clk 0:00:46.7]} 31. Bxe2 {[%clk 0:00:15.7]}
31... Ra8 {[%clk 0:00:44.5]} 32. Bc4 {[%clk 0:00:15.8]} 32... Rb8 {[%clk
0:00:43.4]} 33. Rfd1 {[%clk 0:00:14.7]} 33... Rb2 {[%clk 0:00:42.9]} 34. Rf1
{[%clk 0:00:15.2]} 34... c5 {[%clk 0:00:41.8]} 35. Kh1 {[%clk 0:00:15.6]} 35...
Rxf2 {[%clk 0:00:40]} 36. Rxf2 {[%clk 0:00:11.5]} 36... Bxf2 {[%clk 0:00:40.2]}
37. Rf1 {[%clk 0:00:12.3]} 37... Qg3 {[%clk 0:00:37.6]} 38. e5 {[%clk
0:00:12.6]} 38... f6 {[%clk 0:00:35.8]} 39. e6 {[%clk 0:00:11.4]} 39... Qc3
{[%clk 0:00:30.7]} 40. Bd5 {[%clk 0:00:10.6]} 40... Qd3 {[%clk 0:00:30.5]} 0-1